fUSD/lending_fUSD_20250427
["ID","MTS","AMOUNT","RATE_DAILY","PERIOD"]
[359179730,1745777448702,-480.0,0.00019999,2]
[359179731,1745777448712,-566.84608569,0.00019999,2]
[359179732,1745777448722,-161.18760986,0.00019999,2]
[359179733,1745777448732,-508.48,0.00019999,2]
[359179734,1745777448742,-480.0,0.00019999,2]
[359179735,1745777448752,-520.0,0.00019999,2]
[359179736,1745777448762,-480.0,0.00019999,2]
[359179737,1745777448773,-480.0,0.00019999,2]
[359179738,1745777448783,-500.0,0.00019999,2]
[359179739,1745777448793,-520.0,0.00019999,2]
[359179740,1745777448803,-194.18979773,0.00019999,2]
[359179741,1745777448813,-480.0,0.00019999,2]
[359179742,1745777448823,-520.0,0.00019999,2]
[359179743,1745777448834,-480.0,0.00019999,2]
[359179744,1745777448844,-440.4,0.00019999,2]
[359179745,1745777448855,-480.0,0.00019999,2]
[359179746,1745777448865,-480.0,0.00019999,2]
[359179747,1745777448875,-520.0,0.00019999,2]
[359179748,1745777448886,-480.0,0.00019999,2]
[359179749,1745777448896,-480.0,0.00019999,2]
[359179750,1745777448906,-534.56,0.00019999,2]
[359179751,1745777448916,-520.0,0.00019999,2]
[359179752,1745777448927,-480.0,0.00019999,2]
[359179753,1745777448937,-480.0,0.00019999,2]
[359179754,1745777448946,-480.0,0.00019999,2]
[359179755,1745777448956,-376.76,0.00019999,2]
[359179756,1745777448966,-480.0,0.00019999,2]
[359179757,1745777448976,-520.0,0.00019999,2]
[359179758,1745777448986,-501.92096542,0.00019999,2]
[359179759,1745777448997,-480.0,0.00019999,2]
[359179760,1745777449008,-500.0,0.00019999,2]
[359179761,1745777449018,-520.0,0.00019999,2]
[359179762,1745777449029,-500.0,0.00019999,2]
[359179763,1745777449038,-500.0,0.00019999,2]
[359179764,1745777449049,-505.75309277,0.00019999,2]
[359179765,1745777449059,-480.0,0.00019999,2]
[359179766,1745777449069,-520.0,0.00019999,2]
[359179767,1745777449079,-500.0,0.00019999,2]
[359179768,1745777449088,-500.0,0.00019999,2]
[359179769,1745777449099,-480.0,0.00019999,2]
[359179770,1745777449109,-531.68550311,0.00019999,2]
[359179771,1745777449119,-480.0,0.00019999,2]
[359179772,1745777449129,-534.92372009,0.00019999,2]
[359179773,1745777449140,-480.0,0.00019999,2]
[359179774,1745777449150,-480.0,0.00019999,2]
[359179775,1745777449160,-536.75276644,0.00019999,2]
[359179776,1745777449171,-484.04,0.00019999,2]
[359179777,1745777449181,-626.04,0.00019999,2]
[359179778,1745777449191,-480.0,0.00019999,2]
[359179779,1745777449202,-520.0,0.00019999,2]
[359179780,1745777449212,-480.0,0.00019999,2]
[359179781,1745777449222,-520.0,0.00019999,2]
[359179782,1745777449232,-480.0,0.00019999,2]
[359179783,1745777449243,-520.0,0.00019999,2]
[359179784,1745777449253,-505.5901854,0.00019999,2]
[359179785,1745777449264,-480.0,0.00019999,2]
[359179786,1745777449275,-547.77,0.00019999,2]
[359179787,1745777449285,-480.0,0.00019999,2]
[359179788,1745777449454,-480.0,0.00019999,2]
[359179789,1745777449464,-480.0,0.00019999,2]
[359179790,1745777449475,-565.08,0.00019999,2]
[359179791,1745777449486,-388.22,0.00019999,2]
[359179792,1745777449496,-480.0,0.00019999,2]
[359179793,1745777449505,-559.86759316,0.00019999,2]
[359179794,1745777449515,-977.26,0.00019999,2]
[359179795,1745777449525,-977.26,0.00019999,2]
[359179796,1745777449536,-977.26,0.00019999,2]
[359179797,1745777449551,-977.26,0.00019999,2]
[359179798,1745777449560,-480.0,0.00019999,2]
[359179799,1745777449570,-977.26,0.00019999,2]
[359179800,1745777449580,-480.0,0.00019999,2]
[359179801,1745777449589,-977.26,0.00019999,2]
[359179802,1745777449599,-480.0,0.00019999,2]
[359179803,1745777449608,-480.0,0.00019999,2]
[359179804,1745777449618,-977.26,0.00019999,2]
[359179805,1745777449628,-480.0,0.00019999,2]
[359179806,1745777449637,-520.0,0.00019999,2]
[359179807,1745777449647,-977.26,0.00019999,2]
[359179808,1745777449656,-445.68453097,0.00019999,2]
[359179809,1745777449667,-174.52,0.00019999,2]
[359179810,1745777449676,-977.26,0.00019999,2]
[359179811,1745777449686,-977.26,0.00019999,2]
[359179812,1745777449696,-977.26,0.00019999,2]
[359179813,1745777449706,-977.26,0.00019999,2]
[359179814,1745777449716,-977.26,0.00019999,2]
[359179815,1745777449726,-977.26,0.00019999,2]
[359179816,1745777449736,-977.26,0.00019999,2]
[359179817,1745777449746,-480.0,0.00019999,2]
[359179818,1745777449756,-977.26,0.00019999,2]
[359179819,1745777449767,-520.0,0.00019999,2]
[359179820,1745777449777,-500.0,0.00019999,2]
[359179821,1745777449787,-977.26,0.00019999,2]
[359179822,1745777449797,-500.0,0.00019999,2]
[359179823,1745777449807,-977.26,0.00019999,2]
[359179824,1745777449817,-977.26,0.00019999,2]
[359179825,1745777449827,-480.0,0.00019999,2]
[359179826,1745777449837,-977.26,0.00019999,2]
[359179827,1745777449846,-480.0,0.00019999,2]
[359179828,1745777449856,-520.0,0.00019999,2]
[359179829,1745777449865,-571.34,0.00019999,2]
[359179830,1745777449875,-977.26,0.00019999,2]
[359179831,1745777449884,-977.26,0.00019999,2]
[359179832,1745777449894,-571.00433,0.00019999,2]
[359179833,1745777449905,-500.0,0.00019999,2]
[359179834,1745777449915,-977.26,0.00019999,2]
[359179835,1745777449925,-480.0,0.00019999,2]
[359179836,1745777449934,-977.44,0.00019999,2]
[359179837,1745777449944,-520.0,0.00019999,2]
[359179838,1745777449954,-480.0,0.00019999,2]
[359179839,1745777449965,-502.21186598,0.00019999,2]
[359179840,1745777449975,-480.0,0.00019999,2]
[359179841,1745777449984,-504.58,0.00019999,2]
[359179842,1745777449994,-480.0,0.00019999,2]
[359179843,1745777450010,-518.52,0.00019999,2]
[359179844,1745777450019,-513.59144946,0.00019999,2]
[359179845,1745777450028,-550.13155747,0.00019999,2]
[359179846,1745777450038,-480.0,0.00019999,2]
[359179847,1745777450048,-520.0,0.00019999,2]
[359179848,1745777450058,-480.0,0.00019999,2]
[359179849,1745777450067,-257.7,0.00019999,2]
[359179850,1745777450077,-480.0,0.00019999,2]
[359179851,1745777450087,-198.39,0.00019999,2]
[359179852,1745777450096,-480.0,0.00019999,2]
[359179853,1745777450107,-480.0,0.00019999,2]
[359179854,1745777450116,-520.0,0.00019999,2]
[359179855,1745777450126,-520.0,0.00019999,2]
[359179856,1745777450135,-583.92509349,0.00019999,2]
[359179857,1745777450145,-480.0,0.00019999,2]
[359179858,1745777450155,-500.0,0.00019999,2]
[359179859,1745777450165,-520.0,0.00019999,2]
[359179860,1745777450176,-529.28029039,0.00019999,2]
[359179861,1745777450185,-480.0,0.00019999,2]
[359179862,1745777450195,-480.0,0.00019999,2]
[359179863,1745777450204,-520.0,0.00019999,2]
[359179864,1745777450214,-520.0,0.00019999,2]
[359179865,1745777450224,-480.0,0.00019999,2]
[359179866,1745777450233,-500.0,0.00019999,2]
[359179867,1745777450242,-520.0,0.00019999,2]
[359179868,1745777450252,-480.0,0.00019999,2]
[359179869,1745777450261,-520.0,0.00019999,2]
[359179870,1745777450271,-480.0,0.00019999,2]
[359179871,1745777450280,-532.65363349,0.00019999,2]
[359179872,1745777450290,-500.0,0.00019999,2]
[359179873,1745777450299,-480.0,0.00019999,2]
[359179874,1745777450309,-622.88956425,0.00019999,2]
[359179875,1745777450318,-520.0,0.00019999,2]
[359179876,1745777450328,-480.0,0.00019999,2]
[359179877,1745777450337,-480.0,0.00019999,2]
[359179878,1745777450349,-529.28,0.00019999,2]
[359179879,1745777450359,-326.87,0.00019999,2]
[359179880,1745777450368,-520.0,0.00019999,2]
[359179881,1745777450378,-480.0,0.00019999,2]
[359179882,1745777450387,-551.5177435,0.00019999,2]
[359179883,1745777450397,-501.144492,0.00019999,2]
[359179884,1745777450408,-544.25956172,0.00019999,2]
[359179885,1745777450418,-311.65946659,0.00019999,2]
[359179886,1745777450427,-480.0,0.00019999,2]
[359179887,1745777450437,-260.40763222,0.00019999,2]
[359179888,1745777450447,-525.00208751,0.00019999,2]
[359179889,1745777450456,-558.06,0.00019999,2]
[359179890,1745777450467,-480.0,0.00019999,2]
[359179891,1745777450476,-520.0,0.00019999,2]
[359179892,1745777450486,-480.0,0.00019999,2]
[359179893,1745777450495,-162.32,0.00019999,2]
[359179894,1745777450504,-480.0,0.00019999,2]
[359179895,1745777450514,-520.0,0.00019999,2]
[359179896,1745777450523,-480.0,0.00019999,2]
[359179897,1745777450533,-546.64619842,0.00019999,2]
[359179898,1745777450544,-480.0,0.00019999,2]
[359179899,1745777450554,-516.65,0.00019999,2]
[359179900,1745777450563,-520.0,0.00019999,2]
[359179901,1745777450572,-480.0,0.00019999,2]
[359179902,1745777450582,-500.0,0.00019999,2]
[359179903,1745777450591,-254.0,0.00019999,2]
[359179904,1745777450601,-480.0,0.00019999,2]
[359179905,1745777450610,-520.0,0.00019999,2]
[359179906,1745777450619,-480.0,0.00019999,2]
[359179907,1745777450629,-480.0,0.00019999,2]
[359179908,1745777450638,-602.84241791,0.00019999,2]
[359179909,1745777450647,-480.0,0.00019999,2]
[359179910,1745777450657,-225.78,0.00019999,2]
[359179911,1745777450666,-543.85782856,0.00019999,2]
[359179912,1745777450675,-480.0,0.00019999,2]
[359179913,1745777450684,-480.0,0.00019999,2]
[359179914,1745777450694,-500.0,0.00019999,2]
[359179915,1745777450703,-480.0,0.00019999,2]
[359179916,1745777450712,-191.06,0.00019999,2]
[359179917,1745777450722,-506.62951213,0.00019999,2]
[359179918,1745777450731,-480.0,0.00019999,2]
[359179919,1745777450740,-534.1522631,0.00019999,2]
[359179920,1745777450750,-480.0,0.00019999,2]
[359179921,1745777450759,-520.0,0.00019999,2]
[359179922,1745777450768,-426.86,0.00019999,2]
[359179923,1745777450777,-480.0,0.00019999,2]
[359179924,1745777450788,-525.2,0.00019999,2]
[359179925,1745777450798,-480.0,0.00019999,2]
[359179926,1745777450808,-480.0,0.00019999,2]
[359179927,1745777450817,-480.0,0.00019999,2]
[359179928,1745777450826,-244.78,0.00019999,2]
[359179929,1745777450836,-520.0,0.00019999,2]
[359179930,1745777450845,-576.37880177,0.00019999,2]
[359179931,1745777450855,-500.0,0.00019999,2]
[359179932,1745777450865,-480.0,0.00019999,2]
[359179933,1745777450874,-307.22,0.00019999,2]
[359179934,1745777450884,-500.0,0.00019999,2]
[359179935,1745777450893,-500.0,0.00019999,2]
[359179936,1745777450903,-500.0,0.00019999,2]
[359179937,1745777450912,-500.0,0.00019999,2]
[359179938,1745777450923,-500.0,0.00019999,2]
[359179939,1745777450932,-500.0,0.00019999,2]
[359179940,1745777450941,-500.0,0.00019999,2]
[359179941,1745777450951,-507.77604178,0.00019999,2]
[359179942,1745777450961,-480.0,0.00019999,2]
[359179943,1745777450971,-520.0,0.00019999,2]
[359179944,1745777450981,-480.0,0.00019999,2]
[359179945,1745777450991,-520.0,0.00019999,2]
[359179946,1745777451001,-509.77325217,0.00019999,2]
[359179947,1745777451011,-480.0,0.00019999,2]
[359179948,1745777451021,-480.0,0.00019999,2]
[359179949,1745777451030,-194.52,0.00019999,2]
[359179950,1745777451040,-500.0,0.00019999,2]
[359179951,1745777451050,-480.0,0.00019999,2]
[359179952,1745777451059,-480.0,0.00019999,2]
[359179953,1745777451069,-520.26,0.00019999,2]
[359179954,1745777451079,-608.17,0.00019999,2]
[359179955,1745777451090,-480.0,0.00019999,2]
[359179956,1745777451100,-501.05,0.00019999,2]
[359179957,1745777451111,-480.0,0.00019999,2]
[359179958,1745777451121,-505.20395864,0.00019999,2]
[359179959,1745777451130,-520.0,0.00019999,2]
[359179960,1745777451141,-480.0,0.00019999,2]
[359179961,1745777451151,-310.26,0.00019999,2]
[359179962,1745777451160,-480.0,0.00019999,2]
[359179963,1745777451170,-480.0,0.00019999,2]
[359179964,1745777451179,-480.0,0.00019999,2]
[359179965,1745777451189,-189.1,0.00019999,2]
[359179966,1745777451199,-480.0,0.00019999,2]
[359179967,1745777451209,-480.0,0.00019999,2]
[359179968,1745777451219,-480.0,0.00019999,2]
[359179969,1745777451229,-615.3,0.00019999,2]
[359179970,1745777451239,-526.94746049,0.00019999,2]
[359179971,1745777451248,-549.24565096,0.00019999,2]
[359179972,1745777451258,-500.0,0.00019999,2]
[359179973,1745777451267,-500.0,0.00019999,2]
[359179974,1745777451276,-505.60488851,0.00019999,2]
[359179975,1745777451286,-480.0,0.00019999,2]
[359179976,1745777451295,-520.0,0.00019999,2]
[359179977,1745777451304,-480.0,0.00019999,2]
[359179978,1745777451314,-520.0,0.00019999,2]
[359179979,1745777451323,-480.0,0.00019999,2]
[359179980,1745777451332,-480.0,0.00019999,2]
[359179981,1745777451342,-500.0,0.00019999,2]
[359179982,1745777451353,-527.38,0.00019999,2]
[359179983,1745777451363,-512.28,0.00019999,2]
[359179984,1745777451372,-480.0,0.00019999,2]
[359179985,1745777451381,-520.0,0.00019999,2]
[359179986,1745777451391,-519.01754354,0.00019999,2]
[359179987,1745777451400,-497.09876732,0.00019999,2]
[359179988,1745777451410,-500.0,0.00019999,2]
[359179989,1745777451419,-480.0,0.00019999,2]
[359179990,1745777451428,-520.0,0.00019999,2]
[359179991,1745777451437,-480.0,0.00019999,2]
[359179992,1745777451447,-520.0,0.00019999,2]
[359179993,1745777451456,-480.0,0.00019999,2]
[359179994,1745777451465,-520.0,0.00019999,2]
[359179995,1745777451475,-500.0,0.00019999,2]
[359179996,1745777451484,-530.82762715,0.00019999,2]
[359179997,1745777451494,-504.52999534,0.00019999,2]
[359179998,1745777451503,-480.0,0.00019999,2]
[359179999,1745777451512,-520.0,0.00019999,2]
[359180000,1745777451521,-500.0,0.00019999,2]
[359180001,1745777451530,-480.0,0.00019999,2]
[359180002,1745777451541,-480.0,0.00019999,2]
[359180003,1745777451552,-500.0,0.00019999,2]
[359180004,1745777451562,-520.0,0.00019999,2]
[359180005,1745777451571,-520.0,0.00019999,2]
[359180006,1745777451581,-500.0,0.00019999,2]
[359180007,1745777451591,-480.0,0.00019999,2]
[359180008,1745777451600,-480.0,0.00019999,2]
[359180009,1745777451610,-480.0,0.00019999,2]
[359180010,1745777451621,-480.0,0.00019999,2]
[359180011,1745777451630,-480.0,0.00019999,2]
[359180012,1745777451641,-384.36,0.00019999,2]
[359180013,1745777451651,-480.0,0.00019999,2]
[359180014,1745777451660,-480.0,0.00019999,2]
[359180015,1745777451670,-152.93,0.00019999,2]
[359180016,1745777451679,-513.83642391,0.00019999,2]
[359180017,1745777451688,-480.0,0.00019999,2]
[359180018,1745777451698,-480.0,0.00019999,2]
[359180019,1745777451708,-177.5,0.00019999,2]
[359180020,1745777451719,-480.0,0.00019999,2]
[359180021,1745777451729,-480.0,0.00019999,2]
[359180022,1745777451739,-480.0,0.00019999,2]
[359180023,1745777451750,-480.0,0.00019999,2]
[359180024,1745777451759,-519.22375426,0.00019999,2]
[359180025,1745777451815,-480.0,0.00019999,2]
[359180026,1745777451825,-480.0,0.00019999,2]
[359180027,1745777451835,-480.0,0.00019999,2]
[359180028,1745777451844,-480.0,0.00019999,2]
[359180029,1745777451854,-597.98,0.00019999,2]
[359180030,1745777451863,-505.68,0.00019999,2]
[359180031,1745777451873,-480.0,0.00019999,2]
[359180032,1745777451882,-500.0,0.00019999,2]
[359180033,1745777451892,-583.8,0.00019999,2]
[359180034,1745777451902,-480.0,0.00019999,2]
[359180035,1745777451911,-391.28,0.00019999,2]
[359180036,1745777451921,-480.0,0.00019999,2]
[359180037,1745777451931,-480.0,0.00019999,2]
[359180038,1745777451941,-520.0,0.00019999,2]
[359180039,1745777451950,-520.0,0.00019999,2]
[359180040,1745777451960,-480.0,0.00019999,2]
[359180041,1745777451970,-520.0,0.00019999,2]
[359180042,1745777451980,-500.0,0.00019999,2]
[359180043,1745777451990,-500.0,0.00019999,2]
[359180044,1745777451999,-500.0,0.00019999,2]
[359180045,1745777452008,-505.47942303,0.00019999,2]
[359180046,1745777452017,-480.0,0.00019999,2]
[359180047,1745777452026,-520.0,0.00019999,2]
[359180048,1745777452036,-480.0,0.00019999,2]
[359180049,1745777452045,-480.0,0.00019999,2]
[359180050,1745777452054,-312.67,0.00019999,2]
[359180051,1745777452064,-520.0,0.00019999,2]
[359180052,1745777452075,-500.0,0.00019999,2]
[359180053,1745777452085,-480.0,0.00019999,2]
[359180054,1745777452095,-554.31519195,0.00019999,2]
[359180055,1745777452104,-622.1,0.00019999,2]
[359180056,1745777452115,-500.0,0.00019999,2]
[359180057,1745777452125,-500.0,0.00019999,2]
[359180058,1745777452135,-500.0,0.00019999,2]
[359180059,1745777452145,-503.67939399,0.00019999,2]
[359180060,1745777452155,-352.12123034,0.00019999,2]
[359180061,1745777452164,-480.0,0.00019999,2]
[359180062,1745777452175,-289.63750947,0.00019999,2]
[359180063,1745777452185,-480.0,0.00019999,2]
[359180064,1745777452194,-480.0,0.00019999,2]
[359180065,1745777452204,-480.0,0.00019999,2]
[359180066,1745777452213,-480.0,0.00019999,2]
[359180067,1745777452223,-300.95,0.00019999,2]
[359180068,1745777452232,-428.05,0.00019999,2]
[359180069,1745777452241,-500.0,0.00019999,2]
[359180070,1745777452251,-480.0,0.00019999,2]
[359180071,1745777452261,-520.0,0.00019999,2]
[359180072,1745777452271,-557.87621911,0.00019999,2]
[359180073,1745777452280,-505.50937569,0.00019999,2]
[359180074,1745777452289,-500.0,0.00019999,2]
[359180075,1745777452299,-480.0,0.00019999,2]
[359180076,1745777452308,-431.66,0.00019999,2]
[359180077,1745777452318,-480.0,0.00019999,2]
[359180078,1745777452327,-522.47421885,0.00019999,2]
[359180079,1745777452336,-480.0,0.00019999,2]
[359180080,1745777452345,-520.0,0.00019999,2]
[359180081,1745777452355,-524.07671477,0.00019999,2]
[359180082,1745777452364,-353.29,0.00019999,2]
[359180083,1745777452373,-501.14271221,0.00019999,2]
[359180084,1745777452382,-500.0,0.00019999,2]
[359180085,1745777452392,-480.0,0.00019999,2]
[359180086,1745777452401,-480.0,0.00019999,2]
[359180087,1745777452410,-520.0,0.00019999,2]
[359180088,1745777452420,-466.99,0.00019999,2]
[359180089,1745777452429,-500.0,0.00019999,2]
[359180090,1745777452438,-480.0,0.00019999,2]
[359180091,1745777452448,-480.0,0.00019999,2]
[359180092,1745777452458,-480.0,0.00019999,2]
[359180093,1745777452468,-428.67,0.00019999,2]
[359180094,1745777452478,-480.0,0.00019999,2]
[359180095,1745777452488,-447.4,0.00019999,2]
[359180096,1745777452498,-502.19069082,0.00019999,2]
[359180097,1745777452509,-480.0,0.00019999,2]
[359180098,1745777452519,-480.0,0.00019999,2]
[359180099,1745777452530,-227.77856442,0.00019999,2]
[359180100,1745777452542,-500.0,0.00019999,2]
[359180101,1745777452553,-424.85,0.00019999,2]
[359180102,1745777452563,-480.0,0.00019999,2]
[359180103,1745777452573,-480.0,0.00019999,2]
[359180104,1745777452583,-502.66,0.00019999,2]
[359180105,1745777452593,-480.0,0.00019999,2]
[359180106,1745777452604,-8124.34073474,0.00019999,2]
[359180107,1745777452666,-5816.58926526,0.00019999,2]
[359180108,1745777452677,-546.66,0.00019999,2]
[359180109,1745777452687,-13940.93,0.00019999,2]
[359180110,1745777452697,-4066.61728883,0.00019999,2]
[359180111,1745777452773,-246.51017353,0.00019999,2]
[359180112,1745777452784,-713.97602152,0.00019999,2]
[359180113,1745777452814,-1049.41419005,0.00019999,2]
[359180114,1745777452826,-1685.77121904,0.00019999,2]
[359180115,1745777452838,-1007.52312096,0.00019999,2]
[359180116,1745777452850,-5171.11798607,0.00019999,2]
[359180117,1745777452860,-260.80151838,0.00019999,2]
[359180118,1745777452874,-219.19848162,0.00019999,2]
[359180119,1745777452884,-13940.93,0.00019999,2]
[359180120,1745777452894,-520.0,0.00019999,2]
[359180121,1745777452904,-480.0,0.00019999,2]
[359180122,1745777452914,-13940.93,0.00019999,2]
[359180123,1745777452925,-520.0,0.00019999,2]
[359180124,1745777452935,-13940.93,0.00019999,2]
[359180125,1745777452944,-7170.79061988,0.00019999,2]
[359180126,1745777452956,-878.02833265,0.00019999,2]
[359180127,1745777452969,-1984.58799979,0.00019999,2]
[359180128,1745777452981,-398.09970515,0.00019999,2]
[359180129,1745777452993,-3509.42334253,0.00019999,2]
[359180130,1745777453003,-480.0,0.00019999,2]
[359180131,1745777453014,-500.0,0.00019999,2]
[359180132,1745777453025,-13940.93,0.00019999,2]
[359180133,1745777453035,-520.0,0.00019999,2]
[359180134,1745777453046,-13940.93,0.00019999,2]
[359180135,1745777453057,-500.0,0.00019999,2]
[359180136,1745777453068,-13940.93,0.00019999,2]
[359180137,1745777453079,-480.0,0.00019999,2]
[359180138,1745777453090,-13940.93,0.00019999,2]
[359180139,1745777453101,-13940.93,0.00019999,2]
[359180140,1745777453111,-500.0,0.00019999,2]
[359180141,1745777453122,-499.38,0.00019999,2]
[359180142,1745777453133,-480.0,0.00019999,2]
[359180143,1745777453144,-13940.93,0.00019999,2]
[359180144,1745777453155,-480.0,0.00019999,2]
[359180145,1745777453165,-13940.93,0.00019999,2]
[359180146,1745777453179,-520.0,0.00019999,2]
[359180147,1745777453190,-13940.93,0.00019999,2]
[359180148,1745777453201,-480.0,0.00019999,2]
[359180149,1745777453213,-13940.93,0.00019999,2]
[359180150,1745777453223,-480.0,0.00019999,2]
[359180151,1745777453234,-13940.93,0.00019999,2]
[359180152,1745777453244,-480.0,0.00019999,2]
[359180153,1745777453254,-480.0,0.00019999,2]
[359180154,1745777453265,-13940.93,0.00019999,2]
[359180155,1745777453275,-520.0,0.00019999,2]
[359180156,1745777453286,-480.0,0.00019999,2]
[359180157,1745777453296,-13940.93,0.00019999,2]
[359180158,1745777453307,-480.0,0.00019999,2]
[359180159,1745777453317,-7449.13302018,0.00019999,2]
[359180160,1745777453836,-6491.79697982,0.00019999,2]
[359180161,1745777453847,-500.0,0.00019999,2]
[359180162,1745777453860,-480.0,0.00019999,2]
[359180163,1745777453873,-13940.93,0.00019999,2]
[359180164,1745777453887,-480.0,0.00019999,2]
[359180165,1745777453899,-3507.20925894,0.00019999,2]
[359180166,1745777453917,-1000.0,0.00019999,2]
[359180167,1745777454064,-986.084731,0.00019999,2]
[359180168,1745777454083,-8447.63601006,0.00019999,2]
[359180169,1745777454095,-480.0,0.00019999,2]
[359180170,1745777454106,-248.43759292,0.00019999,2]
[359180171,1745777454117,-13940.93,0.00019999,2]
[359180172,1745777454129,-480.0,0.00019999,2]
[359180173,1745777454140,-172.62,0.00019999,2]
[359180174,1745777454152,-13941.09,0.00019999,2]
[359180175,1745777454162,-500.0,0.00019999,2]
[359180176,1745777454174,-500.0,0.00019999,2]
[359180177,1745777454186,-480.0,0.00019999,2]
[359180178,1745777454197,-309.19,0.00019999,2]
[359180179,1745777454208,-506.20491173,0.00019999,2]
[359180180,1745777454219,-480.0,0.00019999,2]
[359180181,1745777454229,-520.0,0.00019999,2]
[359180182,1745777454240,-480.0,0.00019999,2]
[359180183,1745777454251,-540.74135844,0.00019999,2]
[359180184,1745777454267,-480.0,0.00019999,2]
[359180185,1745777454278,-500.0,0.00019999,2]
[359180186,1745777454288,-267.76,0.00019999,2]
[359180187,1745777454299,-500.0,0.00019999,2]
[359180188,1745777454310,-500.0,0.00019999,2]
[359180189,1745777454321,-500.0,0.00019999,2]
[359180190,1745777454331,-500.0,0.00019999,2]
[359180191,1745777454342,-500.0,0.00019999,2]
[359180192,1745777454353,-500.0,0.00019999,2]
[359180193,1745777454363,-510.36134811,0.00019999,2]
[359180194,1745777454374,-500.99147823,0.00019999,2]
[359180195,1745777454385,-500.0,0.00019999,2]
[359180196,1745777454396,-480.0,0.00019999,2]
[359180197,1745777454406,-480.0,0.00019999,2]
[359180198,1745777454422,-480.0,0.00019999,2]
[359180199,1745777454434,-500.0,0.00019999,2]
[359180200,1745777454445,-480.0,0.00019999,2]
[359180201,1745777454456,-520.0,0.00019999,2]
[359180202,1745777454467,-497.74,0.00019999,2]
[359180203,1745777454479,-500.0,0.00019999,2]
[359180204,1745777454489,-543.81828248,0.00019999,2]
[359180205,1745777454500,-500.0,0.00019999,2]
[359180206,1745777454511,-480.0,0.00019999,2]
[359180207,1745777454522,-373.72,0.00019999,2]
[359180208,1745777454532,-480.0,0.00019999,2]
[359180209,1745777454546,-480.0,0.00019999,2]
[359180210,1745777454556,-480.0,0.00019999,2]
[359180211,1745777454567,-480.0,0.00019999,2]
[359180212,1745777454578,-153.69,0.00019999,2]
[359180213,1745777454590,-480.0,0.00019999,2]
[359180214,1745777454601,-502.44125873,0.00019999,2]
[359180215,1745777454613,-313.86,0.00019999,2]
[359180216,1745777454626,-500.0,0.00019999,2]
[359180217,1745777454639,-536.42,0.00019999,2]
[359180218,1745777454650,-480.0,0.00019999,2]
[359180219,1745777454662,-536.42,0.00019999,2]
[359180220,1745777454674,-520.0,0.00019999,2]
[359180221,1745777454685,-536.42,0.00019999,2]
[359180222,1745777454696,-480.0,0.00019999,2]
[359180223,1745777454708,-536.42,0.00019999,2]
[359180224,1745777454720,-377.49,0.00019999,2]
[359180225,1745777454732,-536.42,0.00019999,2]
[359180226,1745777454744,-536.42,0.00019999,2]
[359180227,1745777454756,-480.0,0.00019999,2]
[359180228,1745777454766,-480.0,0.00019999,2]
[359180229,1745777454777,-536.42,0.00019999,2]